bitfinex/quotes_ETHUSD_20260302
["timestamp","ask_amount","ask_price","bid_price","bid_amount"]
[1772469202832,3.72292901,2049.9,2048.5,1.89366922]
[1772469203353,3.72292901,2049.9,2048.5,5.54808281]
[1772469203653,3.72292901,2049.9,2048.5,6.57408281]
[1772469204153,1.21963118,2049.8,2048.6,1.026]
[1772469204358,1.21963118,2049.8,2048.7,3.65441359]
[1772469204525,4.94256019,2049.8,2048.5,1.70027873]
[1772469204723,3.72292901,2049.7,2048.5,1.89367789]
[1772469205132,1.21963118,2049.8,2048.6,3.65441359]
[1772469206035,4.87852473,2049.9,2048.7,1.22028603]
[1772469206550,3.72292901,2049.8,2048.5,0.67327873]
[1772469207456,3.72292901,2049.8,2048.4,2.24746113]
[1772469207457,3.72292901,2049.4,2047.9,1.22076273]
[1772469207660,5.77359063,2049.1,2047.8,4.87522818]
[1772469207834,3.72292901,2049.0,2047.8,4.87522818]
[1772469208031,1.21998828,2049.2,2048.0,4.87511671]
[1772469208261,1.21998828,2049.2,2048.2,3.65441359]
[1772469208467,4.87828747,2049.9,2048.4,3.65441359]
[1772469208773,1.214,2049.8,2048.4,3.65441359]
[1772469209542,1.214,2049.8,2048.6,3.65441359]
[1772469209867,5.62410564,2049.7,2048.5,3.65441359]
[1772469210054,8.60121575,2050.1,2048.7,3.65441359]
[1772469210256,2.43457168,2050.0,2048.7,3.65441359]
[1772469211281,6.15750069,2050.0,2048.7,3.65441359]
[1772469211449,3.72292901,2049.9,2048.6,5.90475919]
[1772469211645,3.72292901,2049.9,2048.6,4.87475919]
[1772469211837,3.72292901,2049.9,2048.6,5.90575919]
[1772469212035,4.94256019,2049.8,2048.6,3.65441359]
[1772469212268,3.72292901,2049.7,2048.3,2.70732307]
[1772469212575,3.72292901,2049.7,2048.2,4.87496804]
[1772469212777,3.72292901,2049.5,2048.2,4.87496804]
[1772469212985,4.93992901,2049.4,2048.2,4.87496804]
[1772469213152,6.84110564,2049.4,2048.2,4.87498635]
[1772469213667,3.72292901,2049.3,2048.1,1.22160933]
[1772469213877,3.72292901,2049.3,2048.1,0.001]
[1772469214093,1.22022647,2048.8,2048.1,0.001]
[1772469214387,1.218,2048.7,2048.1,0.001]
[1772469215064,2.43921123,2048.9,2048.1,3.65541359]
[1772469215474,2.43921123,2048.9,2048.1,0.001]
[1772469215652,6.16214024,2048.9,2048.1,0.001]
[1772469216248,1.22021123,2048.9,2048.1,0.001]
[1772469216444,1.22,2048.8,2048.1,0.001]
[1772469217046,1.85467851,2048.7,2048.1,0.001]
[1772469217343,1.85467851,2048.7,2047.9,0.001]
[1772469217656,5.09568866,2049.3,2047.9,0.001]
[1772469217657,1.219,2049.5,2048.3,3.65441359]
[1772469217976,1.21969068,2050.0,2048.3,3.65441359]
[1772469217977,1.221,2050.0,2048.3,3.65441359]
[1772469218148,3.07425019,2049.9,2048.5,3.65441359]
[1772469218348,1.21957168,2049.9,2048.5,3.65441359]
[1772469218551,2.59555758,2049.6,2048.5,3.65441359]
[1772469218787,3.81512926,2049.9,2048.5,3.65441359]
[1772469218984,1.223,2049.8,2048.7,3.65441359]
[1772469219325,1.21957168,2049.9,2048.7,3.65441359]
[1772469219447,2.44257168,2049.9,2048.7,3.65441359]
[1772469219649,1.21957168,2049.9,2048.7,3.65441359]
[1772469219853,1.223,2049.9,2048.7,3.65441359]
[1772469220354,1.21963118,2049.8,2048.7,3.65441359]
[1772469220584,2.59555758,2049.6,2048.4,1.033]
[1772469220783,2.59555758,2049.6,2048.4,4.88175982]
[1772469220982,2.59555758,2049.6,2048.4,8.53617341]
[1772469221390,6.31848659,2049.6,2048.4,3.65441359]
[1772469221557,2.59555758,2049.3,2048.2,1.22054966]
[1772469221883,1.222,2049.2,2048.2,1.22054966]
[1772469222075,1.222,2049.2,2048.1,4.87500896]
[1772469222473,1.22004782,2049.1,2048.1,4.87500896]
[1772469222674,2.59555758,2049.0,2048.1,3.65441359]
[1772469222884,2.59555758,2049.0,2047.9,1.22175853]
[1772469223684,1.221,2048.9,2048.1,2.70732307]
[1772469223999,1.221,2048.9,2048.2,3.65441359]
[1772469224496,1.221,2048.9,2048.3,1.22052433]
[1772469224497,1.22022647,2048.8,2048.3,1.22052433]
[1772469224999,2.44117134,2048.9,2048.3,4.87493792]
[1772469225179,1.22,2049.2,2048.4,3.65441359]
[1772469225493,1.22,2049.2,2048.3,1.22052433]
[1772469225494,0.41461652,2049.1,2048.3,1.22052433]
[1772469225731,2.59555758,2049.0,2048.0,1.12081954]
[1772469225871,3.72292901,2049.4,2047.9,4.88404012]
[1772469225872,1.63352919,2048.9,2047.9,4.87613427]
[1772469226070,1.63352919,2048.8,2048.0,3.65441359]
[1772469226267,0.41452919,2048.7,2048.0,3.65441359]
[1772469226464,0.41452919,2048.7,2048.1,1.22064352]
[1772469226792,2.43904782,2049.1,2048.2,3.65441359]
[1772469226993,0.40442749,2049.0,2048.2,3.65441359]
[1772469227194,0.40442749,2048.9,2048.2,3.65441359]
[1772469227404,2.43904782,2049.1,2048.2,3.65441359]
[1772469227579,0.40446667,2049.0,2048.2,3.65441359]
[1772469227775,8.60312031,2049.4,2048.1,1.22164352]
[1772469227776,1.21975019,2049.6,2048.4,3.69413885]
[1772469228002,1.219,2049.4,2048.4,3.69413885]
[1772469228296,0.40450173,2049.3,2048.2,6.39395689]
[1772469228603,1.22004782,2049.1,2048.2,7.61450522]
[1772469228925,0.40450173,2049.0,2048.2,6.39395689]
[1772469229071,1.62250173,2048.9,2048.1,0.001]
[1772469229382,0.40450173,2048.8,2048.1,0.001]
[1772469230608,1.62478776,2048.7,2048.1,0.001]
[1772469230800,0.40450173,2048.6,2048.1,0.001]
[1772469231102,0.40450173,2048.5,2048.1,0.001]
[1772469231302,1.22028603,2048.7,2048.1,0.001]
[1772469231303,0.40450173,2048.4,2048.1,0.001]
[1772469231503,1.22028603,2048.7,2048.1,0.001]
[1772469231684,0.40469359,2048.6,2048.1,0.001]
[1772469231884,0.40469359,2048.5,2048.1,0.001]
[1772469232084,1.62069359,2048.4,2048.1,0.001]
[1772469232279,1.62069359,2048.4,2047.5,7.62241894]
[1772469232280,0.40469359,2048.3,2047.5,7.62241894]
[1772469232487,1.216,2048.4,2047.5,6.40146192]
[1772469232692,1.216,2048.4,2047.5,7.62246132]
[1772469232693,1.62513767,2048.3,2047.5,7.62246132]
[1772469232893,1.22052433,2048.3,2047.5,3.69413885]
[1772469233086,1.22052433,2048.3,2047.5,4.91513431]
[1772469233275,1.22052433,2048.3,2047.8,0.003]
[1772469233976,1.22052433,2048.3,2046.7,5.04853603]
[1772469233977,0.40428033,2048.2,2047.2,1.03]
[1772469234210,4.25741875,2048.1,2046.8,3.69413885]
[1772469234371,0.40428033,2048.0,2046.8,3.69413885]
[1772469234577,1.62028033,2047.9,2046.8,3.69413885]
[1772469234777,1.22088196,2047.7,2046.9,1.22135912]
[1772469235084,4.8820745,2048.4,2047.0,3.69413885]
[1772469235283,0.40354538,2048.2,2047.2,3.69413885]
[1772469235482,0.40354538,2048.1,2047.2,3.69413885]
[1772469235676,0.4036105,2048.0,2047.2,3.69413885]
[1772469235877,2.43552433,2048.3,2047.2,3.69413885]
[1772469236106,0.40365808,2048.2,2047.2,3.69413885]
[1772469236306,2.43552433,2048.3,2047.2,3.69413885]
[1772469236307,1.22052433,2048.3,2047.2,3.69413885]
[1772469236508,0.4036455,2048.2,2047.0,3.69413885]
[1772469236691,1.22052433,2048.3,2047.2,4.72413885]
[1772469237020,0.4036853,2048.2,2047.4,3.69413885]
[1772469237183,2.43552433,2048.3,2047.4,3.69413885]
[1772469237385,0.40366684,2048.2,2047.4,3.69413885]
[1772469237686,1.22052433,2048.3,2047.4,3.69413885]
[1772469238093,1.22052433,2048.3,2047.4,4.72313885]
[1772469238294,0.40358693,2048.2,2047.4,3.69413885]
[1772469238505,1.22052433,2048.3,2047.4,3.69413885]
[1772469238699,0.40365674,2048.2,2047.4,3.69413885]
[1772469238900,1.62427279,2048.1,2047.1,1.029]
[1772469239197,1.62427279,2048.1,2046.8,4.8856346]
[1772469239198,4.25676769,2048.0,2046.9,1.22131773]
[1772469239517,1.61762927,2047.9,2046.9,1.22131773]
[1772469239682,1.214,2047.8,2047.0,3.69413885]
[1772469240086,1.213,2048.0,2047.0,3.69413885]
[1772469240528,1.22064352,2048.1,2047.0,3.69413885]
[1772469241035,4.88117298,2048.7,2047.0,3.69413885]
[1772469241036,3.85313842,2048.8,2047.2,3.69413885]
[1772469241189,1.22016691,2048.9,2047.1,3.69413885]
[1772469241190,3.85313842,2048.5,2047.1,3.69413885]
[1772469241506,3.85313842,2048.3,2047.1,3.69413885]
[1772469241848,4.25681192,2048.2,2047.1,3.69413885]
[1772469242021,0.4036735,2048.1,2047.1,3.69413885]
[1772469242194,0.002,2049.9,2047.1,3.69413885]
[1772469242195,1.213,2048.3,2047.1,3.69413885]
[1772469242399,5.45898749,2048.2,2047.1,4.72313885]
[1772469242702,3.85313842,2048.6,2047.2,3.69413885]
[1772469242910,1.22046475,2048.4,2047.4,3.69413885]
[1772469243109,0.39268031,2048.3,2047.4,3.69413885]
[1772469243280,1.22046475,2048.4,2047.4,3.69413885]
[1772469243482,0.39259662,2048.3,2047.4,3.69413885]
[1772469243686,0.39259662,2048.2,2047.4,3.69413885]
[1772469244001,1.22046475,2048.4,2047.4,3.69413885]
[1772469244202,0.39250971,2048.3,2047.4,3.69413885]
[1772469244409,1.22046475,2048.4,2047.4,3.69413885]
[1772469244610,1.22046475,2048.4,2047.5,3.69413885]
[1772469244914,1.22040517,2048.5,2047.5,4.91509658]
[1772469245122,0.39288869,2048.4,2047.6,3.69413885]
[1772469245421,1.22040517,2048.5,2047.6,3.69413885]
[1772469245623,1.213,2048.7,2047.6,3.69413885]
[1772469246221,0.39305521,2048.6,2047.8,3.69413885]
[1772469246421,1.213,2048.7,2047.8,3.69413885]
[1772469246611,1.22022647,2048.8,2047.8,3.69413885]
[1772469246949,2.43233404,2048.7,2047.9,4.91490158]
[1772469247439,3.85313842,2048.3,2047.0,4.91540522]
[1772469247601,1.60628312,2048.2,2047.1,1.22121753]
[1772469247802,0.39328312,2048.1,2047.1,1.22121063]
[1772469248026,0.39328312,2048.0,2047.0,3.69413885]
[1772469248240,5.07347246,2048.7,2047.3,4.91625091]
[1772469248407,5.06713842,2048.3,2047.3,0.001]
[1772469248746,5.06713842,2048.3,2046.7,0.1627567]
[1772469248747,3.85313842,2047.5,2046.7,0.1627567]
[1772469248945,1.61442925,2047.4,2046.7,1.38423307]
[1772469249107,3.85313842,2048.5,2046.8,3.69413885]
[1772469249309,4.88213613,2048.3,2046.8,3.69413885]
[1772469250717,4.88213613,2048.3,2046.9,3.69413885]
[1772469250919,4.88213613,2048.3,2047.1,3.69413885]
[1772469251239,6.09513613,2048.3,2047.1,3.69413885]
[1772469251603,4.88213613,2048.3,2047.3,3.69413885]
[1772469251844,4.88195273,2048.4,2047.3,3.69413885]
[1772469252035,2.43346475,2048.5,2047.3,3.69413885]
[1772469252036,1.214,2048.5,2047.3,3.69413885]
[1772469252639,3.81719628,2048.6,2047.3,4.72513885]
[1772469252810,1.214,2048.5,2047.3,4.72513885]
[1772469253014,1.214,2048.4,2047.5,4.91514007]
[1772469253217,1.214,2048.4,2047.3,1.031]
[1772469253413,3.85313842,2048.3,2047.1,3.69413885]
[1772469253639,2.59685068,2048.1,2047.1,3.69413885]
[1772469253844,2.59685068,2048.1,2047.1,4.91536873]
[1772469254049,3.85313842,2048.3,2047.1,4.91536873]
[1772469254216,3.85313842,2048.3,2047.1,4.91537048]
[1772469254844,2.59685068,2048.1,2047.1,3.69413885]
[1772469255163,2.59685068,2048.1,2046.7,3.8036769]
[1772469255164,2.59685068,2047.8,2046.7,3.8036769]
[1772469255456,1.213,2047.7,2046.7,0.1627567]
[1772469255655,2.59685068,2047.2,2046.1,0.003]
[1772469255814,1.213,2047.1,2046.1,0.003]
[1772469256015,3.80985068,2047.1,2046.1,0.003]
[1772469256245,7.44794961,2047.1,2046.1,0.003]
[1772469256450,6.23494961,2046.8,2045.4,4.86313782]
[1772469256665,3.63809893,2046.8,2045.4,4.86313782]
[1772469256828,3.63809893,2047.2,2045.5,3.6409202]
[1772469257025,1.22129946,2047.0,2045.7,3.6409202]
[1772469257214,3.63809893,2046.9,2045.3,3.6409202]
[1772469258221,1.22129946,2047.0,2045.3,3.6409202]
[1772469258421,1.22129946,2047.0,2045.5,3.65030013]
[1772469259039,0.39,2060.1,2045.7,3.65030013]
[1772469259040,4.88414848,2047.6,2045.7,3.65030013]
[1772469259232,6.09714848,2047.6,2045.7,3.65030013]
[1772469259417,6.09714848,2047.6,2045.9,3.65030013]
[1772469259617,1.22094159,2047.8,2045.9,3.65030013]
[1772469259618,1.22082234,2047.8,2045.9,3.65030013]
[1772469260053,1.22082234,2047.8,2046.2,2.51988523]
[1772469260223,1.22082234,2047.8,2046.3,3.65030013]
[1772469260739,4.93169282,2047.8,2046.3,3.65030013]
[1772469261258,3.71087048,2046.9,2045.3,3.65030013]
[1772469261459,2.67721677,2047.0,2045.3,3.65030013]
[1772469261460,4.92487048,2046.8,2045.7,0.001]
[1772469261755,3.71087048,2047.2,2045.7,3.65130013]
[1772469261923,3.71087048,2047.0,2045.7,0.001]
[1772469262247,3.71087048,2046.8,2045.7,0.001]
[1772469262550,0.065536,2047.4,2045.7,0.001]
[1772469262551,4.88328938,2047.9,2045.7,3.65130013]
[1772469262748,0.002,2048.0,2045.9,3.65030013]
[1772469262749,1.2227106,2048.0,2045.9,3.65030013]
[1772469263243,1.22,2047.9,2046.3,3.65030013]
[1772469263449,1.22,2047.9,2046.4,3.65030013]
[1772469263748,0.002,2048.0,2046.4,3.65030013]
[1772469264051,1.22222442,2048.9,2046.9,3.65030013]
[1772469264239,1.22222442,2048.9,2047.1,3.65030013]
[1772469264420,1.22222442,2048.9,2047.1,4.45330013]
[1772469264421,4.9330949,2048.9,2047.1,4.45330013]
[1772469264621,3.71087048,2048.7,2047.1,3.65030013]
[1772469264925,1.223,2048.6,2047.1,3.65030013]
[1772469265239,1.22040517,2048.5,2047.2,1.22118014]
[1772469265440,1.22040517,2048.5,2047.1,4.87150371]
[1772469265633,1.22040517,2048.5,2047.1,4.87153844]
[1772469265950,1.22040517,2048.5,2046.6,3.65030013]
[1772469265951,3.71087048,2048.4,2046.6,3.65030013]
[1772469266450,1.22040517,2048.5,2046.6,3.65030013]
[1772469266748,3.71087048,2048.2,2046.6,3.65030013]
[1772469266954,1.223,2048.1,2046.6,3.65030013]
[1772469267427,4.88185237,2048.5,2046.8,3.65030013]
[1772469267749,1.223,2048.1,2046.8,3.65030013]
[1772469268052,3.71087048,2048.0,2046.4,3.65030013]
[1772469268220,3.71087048,2048.0,2046.4,4.87195321]
[1772469268423,3.71087048,2048.0,2046.4,3.65030013]
[1772469268628,3.71087048,2048.0,2046.4,4.87195742]
[1772469268823,1.222,2047.9,2046.5,3.65030013]
[1772469269531,1.22082234,2047.8,2046.5,3.65030013]
[1772469269738,1.22082234,2047.8,2046.2,2.51988523]
[1772469269739,4.93169282,2047.8,2046.2,3.74162189]
[1772469269924,4.93169282,2047.8,2046.3,3.65030013]
[1772469270130,3.71087048,2047.7,2046.3,3.65030013]
[1772469270329,3.71087048,2047.7,2045.9,4.87222479]
[1772469270638,1.22082234,2047.8,2046.0,3.65030013]
[1772469271040,1.221,2047.7,2046.4,3.65030013]
[1772469271235,1.22082234,2047.8,2046.4,3.65030013]
[1772469271448,1.22064352,2048.1,2046.6,3.65030013]
[1772469271651,1.22022647,2048.8,2046.7,0.065536]
[1772469271833,1.22220851,2048.9,2046.9,3.65030013]
[1772469272029,1.22220851,2048.9,2046.8,1.037]
[1772469272030,0.002,2048.9,2047.3,3.65030013]
[1772469272256,1.21975019,2049.6,2047.6,3.65030013]
[1772469272456,2.44175019,2049.6,2047.6,3.65030013]
[1772469272625,2.44175019,2049.6,2047.7,3.65030013]
[1772469273533,2.44175019,2049.6,2048.0,3.65030013]
[1772469273534,1.21975019,2049.6,2048.0,3.65030013]
[1772469273756,1.224,2049.5,2048.0,3.65030013]
[1772469273959,1.21975019,2049.6,2048.2,3.65030013]
[1772469274255,1.21975019,2049.6,2048.3,3.65030013]
[1772469274432,1.21975019,2049.6,2047.9,3.65030013]
[1772469274433,1.224,2049.5,2047.9,3.65030013]
[1772469274627,1.21975019,2049.6,2048.1,3.65030013]
[1772469274857,1.21975019,2049.6,2048.2,3.65030013]
[1772469275562,1.225,2049.5,2048.2,3.65030013]
[1772469275763,1.21986923,2049.4,2048.4,3.65030013]
[1772469276059,4.93073971,2049.4,2047.8,3.65030013]
[1772469276560,2.44386923,2049.4,2047.8,3.65030013]
[1772469276927,2.44386923,2049.4,2047.9,1.039]
[1772469277125,2.44386923,2049.4,2048.0,3.65030013]
[1772469277741,2.44386923,2049.4,2048.3,3.65030013]
[1772469278343,0.002,2049.2,2048.3,3.65030013]
[1772469278842,1.21985244,2049.5,2048.3,3.65030013]
[1772469279142,0.002,2049.7,2048.3,3.65030013]
[1772469279143,0.002,2049.4,2048.3,3.65030013]
[1772469279347,1.225,2049.4,2048.3,3.65030013]
[1772469279543,1.225,2049.4,2047.9,3.65030013]
[1772469279756,1.21992875,2049.3,2047.9,4.87105871]
[1772469279955,1.223,2049.2,2047.9,3.65030013]
[1772469280764,1.223,2049.2,2047.3,4.88442205]
[1772469280765,1.90792305,2048.9,2047.4,4.8713573]
[1772469281261,1.90792305,2048.9,2047.4,3.65030013]
[1772469281767,1.22022647,2048.8,2047.4,4.87133864]
[1772469281945,1.222,2048.7,2047.5,3.65030013]
[1772469282148,1.22022647,2048.8,2047.5,3.65030013]
[1772469282961,0.002,2049.4,2047.5,3.65030013]
[1772469283184,3.71087048,2050.5,2047.4,2.25903851]
[1772469283185,0.002,2050.8,2048.1,3.65030013]
[1772469283371,0.002,2050.8,2047.7,0.14948499]
[1772469283372,1.90792305,2050.6,2048.3,3.65030013]
[1772469283569,1.90792305,2050.6,2048.2,3.34388523]
[1772469283570,1.90792305,2050.6,2048.5,3.65030013]
[1772469283759,0.002,2050.8,2048.7,3.65030013]
[1772469283960,1.226,2050.8,2048.7,3.65030013]
[1772469284683,1.227,2050.8,2048.8,1.041]
[1772469284874,1.227,2050.8,2048.9,3.65030013]
[1772469285679,1.227,2050.8,2049.1,3.65030013]
[1772469285981,1.90792305,2050.6,2049.1,4.87030125]
[1772469286282,2.44309591,2050.7,2049.2,3.65030013]
[1772469286483,1.21909591,2050.7,2049.2,3.65030013]
[1772469286811,0.002,2050.8,2049.2,3.65030013]
[1772469287080,1.22096485,2051.0,2049.5,3.65030013]
[1772469287283,4.87697514,2051.3,2049.7,3.51907166]
[1772469287284,0.002,2051.3,2049.7,3.51907166]
[1772469287592,1.22074465,2051.3,2049.9,3.45353566]
[1772469287887,1.22074465,2051.3,2050.1,3.45353566]
[1772469288182,0.002,2051.3,2050.1,4.67294624]
[1772469288885,0.002,2051.3,2050.1,3.45353566]
[1772469289183,0.002,2051.3,2049.6,4.87895234]
[1772469289184,1.90792305,2050.9,2049.5,4.67333822]
[1772469289394,1.224,2050.8,2049.5,3.45353566]
[1772469289687,1.227,2051.3,2049.7,3.45353566]
[1772469289873,0.002,2051.3,2049.7,3.45353566]
[1772469290081,0.002,2051.3,2049.9,3.45353566]
[1772469290678,0.002,2051.3,2050.1,3.45353566]
[1772469291894,0.002,2051.3,2050.1,4.49453566]
[1772469292092,0.002,2051.3,2050.2,4.67292888]
[1772469292287,0.002,2051.3,2050.2,3.45353566]
[1772469292487,1.224,2051.3,2050.0,1.21947369]
[1772469292803,1.223,2051.3,2050.0,3.45353566]
[1772469293102,0.002,2051.3,2050.0,3.45353566]
[1772469293671,0.002,2051.3,2050.0,4.49353566]
[1772469294194,0.002,2051.3,2050.0,1.04]
[1772469294365,0.002,2051.3,2049.7,4.67421254]
[1772469294693,1.90792305,2050.9,2049.7,0.001]
[1772469294894,1.22,2050.8,2049.7,0.001]
[1772469295061,3.42471991,2050.7,2049.5,0.001]
[1772469295265,3.35918391,2050.4,2049.5,0.001]
[1772469295467,1.22,2050.3,2049.5,0.001]
[1772469295972,0.065536,2050.7,2049.5,0.001]
[1772469296173,6.0958593,2050.6,2049.5,0.001]
[1772469296508,5.26710696,2050.4,2049.5,0.001]
[1772469296869,3.42471991,2050.3,2049.2,0.001]
[1772469297507,0.14948499,2050.0,2049.2,0.001]
[1772469297665,3.35918391,2050.1,2049.2,0.001]
[1772469298210,2.44051219,2050.0,2049.2,0.001]
[1772469298713,1.21951219,2050.0,2049.2,0.001]
[1772469300206,4.87804878,2050.2,2049.2,0.001]
[1772469301514,1.21903647,2050.8,2049.4,3.45353566]
[1772469301673,1.90792305,2050.7,2049.2,0.001]
[1772469302004,3.74960337,2050.6,2049.2,0.001]
[1772469302174,1.21927428,2050.4,2049.2,0.001]
[1772469302370,0.39041946,2050.3,2049.2,0.001]
[1772469302566,0.39041946,2050.2,2049.2,0.001]
[1772469302785,1.90792305,2049.9,2048.5,3.45353566]
[1772469302998,1.61341946,2049.8,2048.5,3.45353566]
[1772469303297,1.61341946,2049.8,2048.1,1.041]
[1772469303298,0.39041946,2049.7,2048.1,4.67415759]
[1772469303471,0.39041946,2049.7,2048.1,3.45353566]
[1772469303472,0.39041946,2049.6,2048.1,3.45353566]
[1772469303798,0.39041946,2049.5,2048.1,3.45353566]
[1772469303967,1.7643738,2049.8,2048.2,3.45353566]
[1772469304174,1.21975019,2049.6,2048.5,3.45353566]
[1772469304368,0.38977701,2049.5,2048.0,4.67422935]
[1772469304599,1.21975019,2049.6,2048.0,3.45353566]
[1772469304898,1.61173839,2049.5,2048.1,3.45353566]
[1772469305198,1.21975019,2049.6,2048.2,3.45353566]
[1772469305377,1.21975019,2049.6,2048.4,3.45353566]
[1772469305902,1.2194527,2050.1,2048.4,3.45353566]
[1772469306081,1.21940742,2050.2,2048.4,3.45353566]
[1772469306288,4.87617758,2050.8,2048.8,3.45353566]
[1772469306592,4.87617758,2050.8,2049.0,3.45353566]
[1772469306793,4.87617758,2050.8,2049.2,3.45353566]
[1772469307506,4.87617758,2050.8,2049.4,3.45353566]
[1772469308190,0.41047332,2050.7,2049.4,4.67340456]
[1772469308398,0.002,2050.4,2049.4,4.67340456]
[1772469308581,0.002,2050.4,2049.4,3.45353566]
[1772469308771,0.002,2050.4,2049.4,4.67340055]
[1772469309684,0.002,2050.4,2048.9,4.67367419]
[1772469309685,0.4100122,2050.3,2048.9,4.67367419]
[1772469309886,1.222,2050.3,2049.0,3.45353566]
[1772469310085,0.002,2050.4,2049.2,3.45353566]
[1772469310386,0.002,2050.4,2049.4,3.45353566]
[1772469310608,0.002,2050.6,2049.5,3.45353566]
[1772469311700,0.002,2050.6,2049.7,3.45353566]
[1772469312203,0.002,2050.6,2049.9,3.45353566]
[1772469312504,0.002,2050.6,2050.1,3.45353566]
[1772469312716,0.002,2051.1,2050.3,3.45353566]
[1772469313239,0.002,2051.1,2050.5,3.45353566]
[1772469314284,0.002,2051.1,2050.6,1.21915536]
[1772469314590,0.002,2051.1,2050.7,3.34191213]
[1772469314792,0.002,2051.1,2050.4,1.21924494]
[1772469315190,0.002,2051.1,2050.5,3.34191213]
[1772469315811,0.002,2051.3,2050.5,3.34191213]
[1772469315988,0.002,2051.3,2050.7,3.34191213]
[1772469316415,0.002,2051.3,2050.9,3.34191213]
[1772469316785,0.002,2052.4,2051.6,3.34191213]
[1772469317013,0.002,2052.4,2050.8,1.21903647]
[1772469317014,0.002,2052.4,2051.1,3.34191213]
[1772469317214,0.002,2052.4,2051.1,4.38591213]
[1772469317926,3.57961482,2052.2,2050.6,1.21912947]
[1772469318115,1.62235204,2052.1,2050.7,3.47901622]
[1772469318310,0.002,2052.4,2050.7,3.47901622]
[1772469318510,1.21820485,2052.2,2050.8,1.21903647]
[1772469318711,1.21820485,2052.2,2050.9,3.47901622]
[1772469319128,1.21820485,2052.2,2050.9,1.044]
[1772469319342,1.21820485,2052.2,2051.0,3.47901622]
[1772469320538,4.8726317,2052.3,2051.0,4.69790496]
[1772469320764,4.87481941,2052.4,2051.0,4.69790496]
[1772469320944,3.57961482,2052.2,2050.3,1.21933375]
[1772469321113,3.57961482,2052.0,2050.3,1.21933375]
[1772469321444,3.57961482,2052.0,2050.3,4.69834997]
[1772469321740,1.219,2051.9,2050.4,3.47901622]
[1772469321941,0.40970508,2051.8,2050.4,3.47901622]
[1772469322145,7.17958342,2051.9,2050.4,3.47901622]
[1772469322454,1.21844234,2051.8,2050.6,3.47901622]
[1772469322641,1.21820485,2052.2,2050.8,3.47901622]
[1772469323139,1.21819369,2052.3,2050.8,3.47901622]
[1772469323917,0.002,2052.4,2051.0,3.47901622]
[1772469324140,1.22008638,2052.4,2051.0,3.47901622]
[1772469324340,0.002,2052.4,2051.0,3.47901622]
[1772469324547,0.002,2052.4,2051.2,3.47901622]
[1772469324741,0.002,2052.4,2051.4,3.47901622]
[1772469324944,0.002,2052.4,2051.6,3.47901622]
[1772469325942,0.002,2052.4,2051.1,4.69787439]
[1772469326527,1.22008614,2052.4,2051.1,1.21885817]
[1772469326726,1.22008614,2052.4,2050.9,4.87575419]
[1772469326727,4.79970096,2052.4,2050.9,1.21895404]
[1772469327566,4.79970096,2052.4,2050.9,4.69797026]
[1772469327772,4.79561482,2052.3,2050.8,1.21899214]
[1772469327938,4.79561482,2052.3,2050.5,3.47901622]
[1772469327939,3.57961482,2052.2,2050.6,4.87649693]
[1772469328134,3.57961482,2052.2,2050.5,4.69817158]
[1772469328135,3.57961482,2052.0,2050.5,1.21920275]
[1772469328358,3.57961482,2052.0,2050.2,8.43346326]
[1772469328359,3.57961482,2051.7,2050.2,1.21934783]
[1772469328666,6.01417594,2051.6,2050.2,1.21934783]
[1772469328874,4.79661482,2051.5,2049.9,4.87820443]
[1772469329368,1.217,2051.4,2049.9,4.87820443]
[1772469329539,3.98870662,2051.3,2049.6,1.21975019]
[1772469329735,3.57961482,2051.1,2049.6,1.21975019]
[1772469329935,1.217,2051.4,2049.4,0.001]
[1772469329936,3.57961482,2050.7,2049.4,0.001]
[1772469330237,1.217,2050.6,2049.4,1.22086843]
[1772469330437,1.21921482,2050.5,2049.4,0.001]
[1772469330858,3.57961482,2050.4,2049.4,0.001]
[1772469331575,1.216,2050.3,2049.4,0.001]
[1772469332171,1.216,2050.2,2049.4,0.001]
[1772469332572,1.2194527,2050.1,2049.4,0.001]
[1772469332887,1.2194527,2050.1,2049.1,0.001]
[1772469332888,4.79906752,2050.1,2049.1,0.001]
[1772469333193,1.215,2050.0,2049.1,0.001]
[1772469333493,5.34298862,2049.8,2048.9,0.001]
[1772469333785,1.216,2049.7,2048.9,0.001]
[1772469333990,5.34298862,2049.8,2048.9,0.001]
[1772469334283,1.216,2049.6,2048.9,0.001]
[1772469334483,1.21986923,2049.4,2048.6,0.001]
[1772469334688,3.57961482,2049.3,2048.6,0.001]
[1772469335280,1.21986923,2049.4,2048.1,0.001]
[1772469335281,3.57961482,2049.1,2048.1,0.001]
[1772469335657,1.216,2049.0,2048.1,0.001]
[1772469335884,3.57961482,2049.1,2048.1,0.001]
[1772469336094,1.216,2049.2,2048.1,0.001]
[1772469336980,1.21986923,2049.4,2048.1,0.001]
[1772469337146,1.216,2049.1,2048.1,0.001]
[1772469337569,1.21986923,2049.4,2048.1,3.48001622]
[1772469337768,8.45776583,2050.0,2048.4,3.48001622]
[1772469337769,1.217,2050.0,2048.4,3.48001622]
[1772469337972,3.57961482,2049.9,2047.8,1.11395428]
[1772469338176,3.57961482,2049.1,2047.2,4.88466138]
[1772469338469,1.22022647,2048.8,2047.2,1.22118014]
[1772469338668,1.22022647,2048.8,2047.1,8.36490053]
[1772469338669,1.22022647,2048.8,2047.1,4.70120928]
[1772469338985,3.57961482,2048.7,2047.1,0.001]
[1772469339170,4.80161482,2048.6,2047.1,0.001]
[1772469339374,3.57961482,2048.5,2047.1,0.001]
[1772469339590,1.222,2048.4,2047.1,0.001]
[1772469339891,3.57961482,2048.3,2047.1,0.001]
[1772469340483,1.22058392,2048.2,2047.1,0.001]
[1772469340679,1.22040517,2048.5,2048.1,0.001]
[1772469340984,1.22040517,2048.5,2047.1,3.48001622]
[1772469341387,1.22040517,2048.5,2047.1,0.001]
[1772469341593,4.80001999,2048.5,2047.1,0.001]
[1772469342090,3.57961482,2048.4,2047.1,0.001]
[1772469342394,1.22040517,2048.5,2047.1,0.001]
[1772469342395,3.57961482,2048.2,2047.1,0.001]
[1772469342601,3.57961482,2048.0,2047.1,0.001]
[1772469342901,3.57961482,2047.6,2046.9,0.001]
[1772469343194,1.222,2047.5,2046.9,0.001]
[1772469343756,1.221,2047.4,2046.9,0.001]
[1772469343964,1.75690865,2047.9,2046.9,0.001]
[1772469344159,1.221,2047.8,2046.9,0.001]
[1772469344385,1.221,2047.7,2046.9,0.001]